bitfinex/quotes_ETHUSD_20241216
["timestamp","ask_amount","ask_price","bid_price","bid_amount"]
[1734351543156,1.82749392,3916.6,3915.6,0.564]
[1734351543462,0.7698,3916.6,3915.6,0.564]
[1734351543672,0.7698,3916.6,3915.7,0.40224786]
[1734351544164,0.773,3916.9,3916.0,1.02142]
[1734351544458,2.55311,3916.8,3915.7,1.42375786]
[1734351544670,0.773,3916.8,3915.1,1.06708073]
[1734351544830,0.773,3915.7,3915.0,0.564]
[1734351545156,2.55396,3915.5,3914.6,0.564]
[1734351545356,2.55396,3915.5,3914.6,0.96627786]
[1734351545513,0.773,3915.7,3914.6,0.96627786]
[1734351545712,4.99025857,3916.5,3914.6,0.96627786]
[1734351545713,0.8072,3916.1,3914.8,1.02175]
[1734351545937,0.55,3916.0,3914.8,1.02175]
[1734351546140,2.55371,3915.9,3914.7,2.43690857]
[1734351546325,2.55371,3915.9,3914.8,0.44249764]
[1734351546716,0.8072,3916.1,3914.8,0.44249764]
[1734351546920,0.8072,3916.1,3915.1,1.02167]
[1734351547552,0.7743,3916.4,3915.3,1.02163]
[1734351547756,3.32766,3916.4,3915.3,1.02163]
[1734351547968,3.32766,3916.4,3915.4,0.40225386]
[1734351548155,3.32766,3916.4,3915.2,0.564]
[1734351548156,0.7743,3916.4,3915.2,0.564]
[1734351548335,3.0,3916.8,3914.8,1.00649764]
[1734351548336,0.7743,3916.2,3914.8,1.00649764]
[1734351548522,2.55396,3915.5,3914.8,0.564]
[1734351548868,0.7743,3915.6,3914.8,0.564]
[1734351549867,2.55371,3915.9,3914.8,0.564]
[1734351549868,0.55,3915.8,3914.8,0.564]
[1734351550078,0.8271,3916.2,3914.9,2.43690857]
[1734351550282,0.8271,3916.5,3915.4,0.564]
[1734351550424,0.8271,3916.5,3915.5,0.02553676]
[1734351550654,2.55323,3916.6,3915.4,1.5856]
[1734351551704,2.55349,3916.2,3915.1,0.564]
[1734351551847,3.38103,3915.6,3914.3,1.06708073]
[1734351552054,2.55376,3915.8,3914.6,0.564]
[1734351552351,0.8274,3915.9,3914.6,0.564]
[1734351552352,2.55382,3915.7,3914.6,0.564]
[1734351552548,3.38109,3915.9,3914.7,0.158583]
[1734351553147,2.55376,3915.8,3914.7,0.158583]
[1734351553778,0.8274,3915.9,3914.7,1.180363]
[1734351554449,0.8274,3915.9,3914.8,0.564]
[1734351554655,0.8274,3915.9,3914.9,0.42068118]
[1734351554851,2.55434,3914.9,3914.8,0.564]
[1734351555153,2.55434,3914.9,3913.6,1.06708073]
[1734351555361,2.55452,3914.7,3913.7,0.564]
[1734351555961,0.8223,3915.2,3913.7,0.564]
[1734351556167,0.55,3915.1,3913.7,0.86409086]
[1734351556361,2.55434,3914.9,3913.7,0.86409086]
[1734351557002,0.55,3915.1,3913.7,0.86409086]
[1734351557206,2.55442,3914.8,3913.7,0.86409086]
[1734351557371,2.55448,3914.7,3913.8,0.18861809]
[1734351557698,2.55447,3914.8,3913.7,0.86409086]
[1734351558267,0.8148,3914.2,3913.3,0.564]
[1734351558656,2.555,3913.9,3913.3,0.564]
[1734351559808,0.8148,3914.2,3913.3,0.564]
[1734351559809,2.5549,3914.1,3913.3,0.564]
[1734351560357,2.55493,3914.0,3913.3,0.564]
[1734351560798,2.55493,3914.0,3912.7,1.0223]
[1734351560998,0.8148,3914.2,3912.8,0.21149332]
[1734351561159,2.55507,3913.8,3912.8,0.21149332]
[1734351561364,2.43690857,3914.1,3912.7,0.564]
[1734351561659,1.05769392,3914.3,3912.7,0.564]
[1734351561918,3.37643,3914.4,3913.1,0.564]
[1734351562060,2.5549,3914.1,3913.1,0.564]
[1734351562258,2.55508,3913.8,3913.1,0.564]
[1734351563070,2.89258,3914.1,3913.1,0.564]
[1734351563481,0.33766,3914.1,3913.1,0.564]
[1734351563711,0.55,3914.3,3913.1,0.564]
[1734351564473,2.55481,3914.2,3913.1,0.564]
[1734351564914,2.43690857,3914.9,3912.7,2.43690857]
[1734351564915,0.8076,3914.9,3913.6,0.564]
[1734351565220,2.55426,3915.1,3913.8,1.58601]
[1734351565402,2.55406,3915.4,3913.8,0.564]
[1734351565567,2.55406,3915.4,3913.6,0.26923744]
[1734351565568,0.8076,3915.5,3914.0,0.564]
[1734351565812,2.55382,3915.7,3914.3,1.58588]
[1734351566136,2.55382,3915.7,3914.4,1.04739293]
[1734351566338,0.8076,3915.9,3914.7,1.02177]
[1734351566551,0.8076,3915.9,3914.7,1.02178]
[1734351567254,2.55359,3916.1,3914.9,0.564]
[1734351567613,0.7897,3916.2,3914.9,0.564]
[1734351567614,2.55369,3916.0,3914.9,0.564]
[1734351567822,0.7897,3916.2,3914.9,0.564]
[1734351568115,2.55363,3916.0,3914.9,0.564]
[1734351568817,2.55376,3915.8,3914.9,0.564]
[1734351569010,2.5539,3915.6,3914.9,0.564]
[1734351569215,2.55396,3915.5,3914.3,1.02186]
[1734351569474,2.55402,3915.4,3914.4,0.564]
[1734351569968,1.039602,3915.4,3914.4,0.564]
[1734351570190,2.55422,3915.1,3914.4,0.564]
[1734351570373,2.5543,3915.0,3914.4,0.564]
[1734351570540,0.55,3915.3,3913.7,1.02204]
[1734351570893,0.87422779,3915.2,3913.8,0.564]
[1734351571054,2.5544,3914.8,3913.8,0.564]
[1734351571258,2.55479,3914.3,3913.8,0.564]
[1734351571598,2.55486,3914.1,3913.1,0.564]
[1734351571887,2.55473,3914.3,3913.1,0.564]
[1734351572096,1.89069392,3915.0,3913.4,3.00340541]
[1734351572097,0.833,3915.0,3913.4,3.00340541]
[1734351572300,0.55,3914.9,3913.9,1.02199]
[1734351572499,2.55424,3915.1,3914.0,0.564]
[1734351572787,3.00340541,3915.2,3914.0,0.564]
[1734351572984,0.8138,3914.5,3913.1,0.564]
[1734351573223,2.55476,3914.3,3913.1,0.564]
[1734351573393,2.5548,3914.2,3913.1,0.564]
[1734351573556,2.5548,3914.2,3913.2,0.158625]
[1734351573760,2.55501,3913.9,3913.2,0.158625]
[1734351573991,2.55501,3913.9,3913.1,0.564]
[1734351574641,0.55,3914.4,3913.1,0.564]
[1734351575194,0.55,3914.2,3913.1,0.564]
[1734351575359,2.555,3913.9,3913.1,0.564]
[1734351575690,2.55509,3913.8,3913.1,0.564]
[1734351575896,2.55493,3914.0,3913.1,0.564]
[1734351576594,2.555,3913.9,3913.1,0.722627]
[1734351576758,2.55507,3913.8,3913.1,0.564]
[1734351577144,2.55485,3914.2,3913.1,0.564]
[1734351577443,0.8138,3914.5,3913.1,0.564]
[1734351577444,0.55,3914.1,3913.1,0.564]
[1734351577770,3.10487,3914.1,3913.1,0.564]
[1734351578092,0.55,3914.1,3913.1,0.564]
[1734351578238,2.55494,3914.0,3913.1,0.564]
[1734351580496,2.55499,3913.9,3913.1,0.564]
[1734351580865,0.255499,3913.9,3913.1,0.564]
[1734351581104,2.55484,3914.2,3913.1,0.564]
[1734351581272,0.55,3914.1,3913.1,0.564]
[1734351581477,2.55508,3913.8,3913.1,0.564]
[1734351581866,2.55514,3913.7,3913.1,0.564]
[1734351582481,2.55484,3914.2,3912.0,0.564]
[1734351582482,0.8038,3914.0,3912.0,0.564]
[1734351582686,0.55,3913.5,3912.1,0.16310807]
[1734351582937,2.55557,3913.1,3912.0,0.564]
[1734351583098,2.55556,3913.1,3912.0,0.564]
[1734351583682,2.55556,3913.1,3912.0,1.58649]
[1734351583883,3.34212,3913.8,3912.6,0.564]
[1734351584088,3.10513,3913.7,3912.7,0.158633]
[1734351585211,0.787,3913.8,3912.7,0.158633]
[1734351585212,0.55,3913.8,3912.7,0.158633]
[1734351585429,0.55,3913.8,3912.7,1.180913]
[1734351585639,0.55,3913.8,3912.8,1.02228]
[1734351585794,0.55,3913.8,3912.8,1.1967713]
[1734351586836,2.55499,3913.9,3912.9,0.564]
[1734351587137,2.55507,3913.8,3912.9,0.564]
[1734351587995,3.37819,3914.1,3912.9,0.58955505]
[1734351588313,2.55489,3914.1,3912.9,0.564]
[1734351588492,2.885429,3914.1,3912.9,0.564]
[1734351589124,0.330539,3914.1,3912.9,0.564]
[1734351589358,0.7505,3914.4,3912.9,0.564]
[1734351589497,2.55505,3913.9,3912.9,0.564]
[1734351592622,2.55399,3915.5,3913.8,2.44252473]
[1734351592821,2.55399,3915.5,3914.2,1.0219]
[1734351593050,0.337809,3915.4,3914.2,1.0219]
[1734351593215,0.337809,3915.4,3914.5,1.02183]
[1734351593571,0.8241,3915.7,3914.6,0.02554505]
[1734351593713,2.887963,3916.0,3914.4,1.02186]
[1734351593714,2.887963,3916.0,3914.8,1.02174]
[1734351593912,2.887963,3916.0,3914.7,0.564]
[1734351593913,2.55377,3915.8,3914.7,0.564]
[1734351594117,0.2888103,3915.7,3914.7,1.58578]
[1734351594556,0.2888103,3915.7,3914.7,0.564]
[1734351594756,0.2888103,3915.7,3914.8,1.02176]
[1734351596138,0.334333,3916.0,3914.7,0.564]
[1734351596426,2.55369,3915.9,3914.7,0.564]
[1734351597324,2.55393,3915.6,3914.7,0.564]
[1734351597535,2.55396,3915.5,3914.7,0.564]
[1734351598258,0.334333,3916.0,3914.7,0.564]
[1734351598562,0.3711953,3915.9,3914.7,0.564]
[1734351598762,2.55395,3915.5,3914.7,0.564]
[1734351598930,2.55403,3915.4,3914.7,0.564]
[1734351599473,0.55,3915.5,3913.6,0.564]
[1734351599677,2.55416,3915.2,3913.6,1.58607]
[1734351599985,2.55447,3914.7,3913.6,0.564]
[1734351600191,2.55447,3914.7,3913.6,1.58607]
[1734351600353,2.55433,3915.0,3913.7,1.02204]
[1734351600552,2.55433,3915.0,3913.9,0.564]
[1734351601154,2.55434,3914.9,3913.9,0.564]
[1734351602269,2.809774,3914.9,3913.9,0.564]
[1734351603318,2.55441,3914.8,3913.9,0.564]
[1734351604373,2.55451,3914.7,3913.9,0.564]
[1734351605282,2.55453,3914.6,3913.9,0.564]
[1734351606944,1.046434,3914.9,3913.9,0.564]
[1734351607175,2.5548,3914.2,3913.6,0.564]
[1734351607522,0.3600744,3914.8,3913.6,0.564]
[1734351607523,2.55467,3914.4,3913.6,0.564]
[1734351608020,6.10755324,3915.5,3913.8,0.564]
[1734351608021,3.3505,3915.2,3913.8,0.564]
[1734351608219,2.55442,3914.8,3913.8,0.564]
[1734351608425,3.3505,3915.2,3913.8,0.564]
[1734351608426,0.7963,3915.2,3913.8,0.564]
[1734351608724,3.0,3915.7,3913.5,3.00359324]
[1734351608725,2.55382,3915.7,3914.7,0.564]
[1734351608942,0.44078139,3915.7,3914.7,0.564]
[1734351609225,2.55402,3915.4,3914.7,0.564]
[1734351609383,2.5539,3915.6,3914.7,0.564]
[1734351609811,0.44078139,3915.7,3914.7,0.564]
[1734351609991,2.55399,3915.5,3914.7,0.564]
[1734351610195,2.55399,3915.5,3914.7,0.722585]
[1734351610506,2.55399,3915.5,3914.7,0.564]
[1734351615012,2.55388,3915.7,3914.7,0.564]
[1734351615213,0.7963,3915.9,3914.7,0.564]
[1734351615214,2.55389,3915.6,3914.7,0.564]
[1734351615726,0.7963,3915.9,3914.7,0.564]
[1734351615900,2.55404,3915.4,3914.7,0.564]
[1734351616100,0.7963,3915.9,3914.7,0.564]
[1734351616319,2.55375,3915.8,3914.7,0.564]
[1734351616632,2.55401,3915.5,3914.7,0.564]
[1734351617298,0.335005,3915.7,3914.7,0.564]
[1734351617483,2.55415,3915.2,3914.7,0.564]
[1734351617916,0.335005,3915.7,3914.7,0.564]
[1734351618118,0.55,3915.6,3913.9,0.564]
[1734351618391,2.55446,3914.8,3913.9,0.564]
[1734351619645,2.55405,3915.4,3914.4,0.564]
[1734351619985,2.55409,3915.3,3914.4,0.564]
[1734351620226,2.55409,3915.3,3914.4,0.96663948]
[1734351620429,0.7924,3916.1,3914.8,0.564]
[1734351620632,2.55378,3915.8,3914.8,0.564]
[1734351620831,0.7924,3916.1,3914.8,0.564]
[1734351621039,0.7924,3916.1,3914.9,0.30300671]
[1734351621213,0.7924,3916.1,3915.0,0.564]
[1734351622096,1.05721878,3916.6,3915.0,0.564]
[1734351622325,2.55313,3916.8,3915.8,0.564]
[1734351622508,0.7547,3916.9,3915.8,0.564]
[1734351622709,2.55303,3917.0,3915.9,0.564]
[1734351622914,0.8193,3917.3,3915.9,0.564]
[1734351623156,2.55308,3916.9,3915.9,0.564]
[1734351623449,2.55311,3916.8,3915.9,0.564]
[1734351623649,0.8193,3917.3,3915.9,0.564]
[1734351623799,2.55316,3916.8,3915.9,0.564]
[1734351624003,0.8193,3917.3,3916.1,0.564]
[1734351624201,4.02635295,3918.0,3916.3,0.564]
[1734351624202,2.55259,3917.6,3916.3,0.564]
[1734351624451,2.5527,3917.5,3916.4,0.564]
[1734351624750,2.55272,3917.4,3916.4,0.564]
[1734351624957,0.8021,3917.9,3916.4,0.564]
[1734351625116,2.55266,3917.5,3916.4,0.96914166]
[1734351625630,0.335447,3917.8,3916.4,0.96914166]
[1734351625838,0.55,3917.7,3916.4,0.96914166]
[1734351626100,2.55277,3917.3,3916.4,0.96914166]
[1734351627801,2.55285,3917.2,3916.4,0.96914166]
[1734351628466,2.55291,3917.1,3916.4,0.96914166]
[1734351628665,2.55291,3917.1,3916.4,0.564]
[1734351629930,0.55,3917.8,3916.4,0.564]
[1734351630070,2.55292,3917.1,3916.4,0.564]
[1734351630930,0.55,3917.8,3916.4,0.564]
[1734351631072,2.55307,3916.9,3916.4,0.564]
[1734351631271,2.808407,3916.8,3916.4,0.564]
[1734351631884,2.5531,3916.8,3916.4,0.564]
[1734351632316,2.55297,3917.0,3915.5,0.564]
[1734351632520,0.55,3916.6,3915.5,0.564]
[1734351632715,2.55337,3916.4,3915.5,0.564]
[1734351632931,0.55,3917.1,3915.5,0.564]
[1734351632932,2.86964502,3916.3,3915.5,0.564]
[1734351633437,0.31618502,3916.3,3915.5,0.564]
[1734351633635,0.05531326,3916.3,3915.5,0.564]
[1734351634034,2.5533,3916.5,3915.5,0.564]
[1734351634182,0.05529609,3916.2,3915.5,0.564]
[1734351634373,0.05514792,3916.4,3915.5,0.564]
[1734351634575,0.05509642,3916.1,3915.5,0.564]
[1734351634806,2.5533,3916.5,3915.5,0.564]
[1734351635007,0.05507925,3916.0,3915.5,0.564]
[1734351635231,2.5533,3916.5,3915.5,0.564]
[1734351635739,0.05514792,3916.4,3915.5,0.564]
[1734351636444,2.55362,3916.1,3915.5,0.564]
[1734351636775,0.05505318,3916.0,3915.5,0.564]
[1734351636992,0.05505318,3916.0,3915.9,2.44052478]
[1734351637199,0.55,3916.9,3915.9,3.00452478]
[1734351637422,0.386892,3916.9,3916.0,1.02144]
[1734351637643,0.05304409,3916.8,3916.0,1.02144]
[1734351637942,2.55293,3917.1,3916.0,1.02144]
[1734351638154,2.55293,3917.1,3915.9,3.00452478]
[1734351638155,0.05307841,3917.0,3915.9,3.00452478]
[1734351638319,0.05307841,3917.0,3916.1,1.02142]
[1734351638514,0.7523,3917.5,3915.9,2.44052478]
[1734351638515,0.55,3917.1,3916.2,0.564]
[1734351638728,1.05721878,3917.9,3915.1,1.02168]
[1734351638729,0.05307841,3917.0,3916.6,0.564]
[1734351639041,2.55264,3917.5,3916.6,0.86445248]
[1734351639256,2.5526,3917.6,3916.6,0.86445248]
[1734351639456,0.05322528,3917.4,3916.6,0.86445248]
[1734351639623,0.05324244,3917.5,3916.6,0.86445248]
[1734351639820,0.05320812,3917.3,3916.6,0.86445248]
[1734351640018,2.55279,3917.3,3916.6,0.564]
[1734351640223,0.05319096,3917.2,3916.6,0.564]
[1734351641101,2.55266,3917.5,3916.6,0.564]
[1734351641255,0.0533667,3917.1,3916.6,0.564]
[1734351641406,2.55266,3917.5,3916.6,0.564]
[1734351641609,0.05349031,3917.0,3916.6,0.564]
[1734351641854,2.55266,3917.5,3916.6,0.564]
[1734351642011,0.05347315,3916.9,3916.6,0.564]
[1734351642214,0.7523,3917.9,3916.6,0.564]
[1734351642215,0.55,3917.8,3916.6,0.564]
[1734351642569,2.55284,3917.2,3916.6,0.564]
[1734351642914,0.05348664,3917.1,3916.6,0.564]
[1734351643843,2.55273,3917.4,3916.6,0.564]
[1734351644154,2.68278,3917.7,3916.6,0.564]
[1734351644155,2.55278,3917.3,3916.6,0.564]
[1734351644449,0.255278,3917.2,3916.6,0.564]
[1734351644622,2.60620189,3917.3,3916.6,0.564]
[1734351644852,0.05338757,3917.1,3916.6,0.564]
[1734351645052,0.05340473,3917.2,3916.6,0.564]
[1734351645258,0.05337041,3917.0,3916.6,0.564]
[1734351645458,0.05338757,3917.1,3916.6,0.564]
[1734351645652,0.05335325,3916.9,3916.6,0.564]
[1734351645841,0.05337041,3917.0,3916.6,0.564]
[1734351646058,0.05333609,3916.8,3916.6,0.564]
[1734351646269,2.55278,3917.3,3916.6,0.564]
[1734351646471,0.05331892,3916.7,3916.6,0.564]
[1734351646676,2.55264,3917.5,3916.6,0.564]
[1734351646860,0.13023,3917.7,3916.6,0.564]
[1734351646861,0.05331892,3916.7,3916.6,0.564]
[1734351647182,0.05158802,3916.7,3916.6,0.564]
[1734351647584,2.55265,3917.5,3916.6,0.564]
[1734351647891,0.05158802,3916.7,3916.6,0.564]
[1734351648069,2.55265,3917.5,3916.6,0.564]
[1734351648474,0.05177072,3917.4,3916.6,0.564]
[1734351648789,2.60451072,3917.4,3916.6,0.564]
[1734351650295,0.05177072,3917.4,3916.6,1.58529]
[1734351650647,2.55261,3917.6,3916.6,1.58529]
[1734351650849,0.04835789,3917.3,3916.6,0.564]
[1734351651107,2.60105221,3917.5,3916.6,0.564]
[1734351651384,2.55266,3917.5,3916.6,0.564]
[1734351651594,0.04892253,3917.4,3916.6,0.564]
[1734351652368,2.60165253,3917.4,3916.6,0.564]
[1734351652568,0.26016525,3917.3,3916.6,0.564]
[1734351653104,0.04890385,3917.2,3916.6,0.564]
[1734351654184,2.60174385,3917.2,3916.6,0.564]
[1734351657793,0.04890385,3917.2,3916.6,0.564]
[1734351658417,0.04888669,3917.1,3916.6,0.564]
[1734351658912,2.55246,3917.8,3916.7,1.58524]
[1734351659068,0.04886952,3917.0,3916.7,1.58524]
[1734351659266,2.55246,3917.8,3916.8,1.02123]
[1734351659720,0.7523,3917.9,3916.7,0.564]
[1734351659721,0.04898963,3917.7,3916.7,0.564]
[1734351659893,2.60151963,3917.7,3916.7,0.564]
[1734351660088,2.93690159,3917.7,3916.7,1.58526]
[1734351661922,2.55259,3917.6,3916.7,0.564]
[1734351662233,0.04895532,3917.5,3916.7,0.564]
[1734351663523,0.04895532,3917.5,3916.7,1.58526]
[1734351663734,2.55247,3917.8,3916.7,1.58526]
[1734351663891,0.04893816,3917.4,3916.7,1.58526]
[1734351664103,0.585706,3917.8,3916.7,0.564]
[1734351664373,2.55258,3917.6,3916.7,0.564]
[1734351664777,0.04895532,3917.5,3916.7,0.564]
[1734351665700,2.55258,3917.6,3916.7,0.564]
[1734351665913,0.55,3917.8,3916.7,0.564]
[1734351665914,0.04741846,3917.4,3916.7,0.564]
[1734351666079,0.04743562,3917.5,3916.7,0.564]
[1734351666283,0.0474013,3917.3,3916.7,0.564]
[1734351666593,0.04734768,3917.2,3916.7,0.564]
[1734351666789,0.04734768,3917.2,3916.9,3.00452478]
[1734351667002,3.60948878,3918.1,3917.1,0.564]
[1734351667214,2.1961484,3918.0,3917.1,0.564]
[1734351667385,2.24363333,3918.0,3917.1,0.564]
[1734351667596,0.04748493,3918.0,3917.1,0.564]
[1734351667795,2.55239,3917.9,3917.1,0.564]
[1734351667991,2.91809937,3917.9,3917.1,0.564]
[1734351668293,0.04757569,3917.8,3917.1,0.564]
[1734351670223,0.04757569,3917.8,3917.1,0.58952757]
[1734351670536,2.39922817,3918.3,3917.3,0.564]
[1734351670537,3.60939878,3918.3,3917.3,0.564]
[1734351670712,0.87797778,3918.2,3917.3,0.564]
[1734351671049,0.04762715,3918.1,3917.3,0.564]
[1734351671401,0.04762715,3918.1,3917.3,1.743602]
[1734351671600,2.55218,3918.3,3917.3,1.58509]
[1734351671834,0.04771943,3918.0,3917.3,1.58509]
[1734351672055,2.55218,3918.3,3917.3,1.58509]
[1734351672056,0.04775373,3918.2,3917.3,1.58509]
[1734351672263,0.04770227,3917.9,3917.3,1.58509]
[1734351672557,0.04768512,3917.8,3917.3,0.564]
[1734351672695,2.55229,3918.1,3917.3,0.564]
[1734351672894,0.04771943,3918.0,3917.3,0.564]
[1734351673097,2.55215,3918.3,3917.3,0.564]
[1734351673341,3.3268657,3918.3,3917.3,0.564]
[1734351673645,0.04775373,3918.2,3917.3,0.564]
[1734351673797,2.55225,3918.1,3917.3,0.564]
[1734351673996,2.55234,3918.0,3917.3,0.564]
[1734351674233,2.60005943,3918.0,3917.3,0.564]
[1734351674538,0.26000594,3917.9,3917.3,0.564]
[1734351675034,0.04783102,3917.8,3917.3,0.564]
[1734351676813,2.60029102,3917.8,3917.3,0.564]
[1734351677017,2.55246,3917.8,3917.3,0.564]
[1734351677213,0.04781387,3917.7,3917.3,0.564]
[1734351677713,0.04779671,3917.6,3917.3,0.564]
[1734351677900,2.55246,3917.8,3917.3,0.564]
[1734351678248,0.04781387,3917.7,3917.3,0.564]
[1734351678604,2.55234,3918.0,3917.3,0.564]
[1734351678836,0.04779671,3917.6,3917.3,0.564]
[1734351679142,3.46316788,3918.2,3916.8,0.564]
[1734351679143,3.30595,3918.1,3916.8,0.564]
[1734351679443,2.55257,3917.7,3916.8,0.564]
[1734351679809,0.04772378,3917.6,3916.8,0.564]
[1734351680011,0.04772378,3917.6,3916.8,1.09966827]
[1734351680213,0.04772378,3917.6,3916.9,0.564]
[1734351680537,0.03850197,3917.6,3916.9,0.564]
[1734351681715,2.55283,3917.3,3916.9,0.564]
[1734351681912,0.04763443,3917.2,3916.9,0.564]
[1734351682244,2.55287,3917.2,3916.9,0.564]
[1734351682566,2.60053163,3917.1,3916.9,0.564]
[1734351683541,0.04760163,3917.1,3916.9,0.564]
[1734351683861,2.55283,3917.3,3916.9,0.564]
[1734351684063,0.04586211,3917.0,3916.9,0.564]
[1734351684267,0.55,3917.6,3916.9,0.564]
[1734351684559,1.05721878,3917.7,3916.9,0.564]
[1734351684560,0.55,3917.7,3916.9,0.564]
[1734351684731,0.04581915,3917.6,3916.9,0.564]
[1734351685137,2.55271,3917.4,3916.9,0.564]
[1734351685438,0.04576767,3917.3,3916.9,0.564]
[1734351685972,2.55278,3917.3,3916.9,0.564]
[1734351686179,0.04575051,3917.2,3916.9,0.564]
[1734351686336,1.92652348,3917.7,3916.9,0.564]
[1734351686536,0.92510562,3917.6,3916.9,1.58521]
[1734351686854,0.04581915,3917.6,3916.9,0.564]
[1734351687371,1.05721878,3918.2,3917.3,0.564]
[1734351687573,0.04595705,3918.1,3917.5,0.564]
[1734351687774,1.05721878,3918.4,3917.7,0.564]
[1734351688073,0.92595413,3918.3,3917.7,0.564]
[1734351688246,0.04621543,3918.3,3917.7,0.564]
[1734351688633,1.05721878,3918.5,3917.7,0.564]
[1734351688835,0.04638068,3918.2,3917.7,0.564]
[1734351689062,1.05721878,3918.5,3917.8,0.1888055]
[1734351689263,0.04636353,3918.1,3917.8,0.1888055]
[1734351689479,1.05721878,3918.5,3917.8,0.1888055]
[1734351689660,0.04659125,3918.0,3917.8,0.1888055]
[1734351689973,0.04683978,3917.9,3917.8,0.1888055]
[1734351690189,3.60914878,3918.6,3917.7,0.564]
[1734351690394,2.24488342,3918.5,3917.7,0.564]
[1734351690596,0.04694269,3918.5,3917.7,0.564]
[1734351693009,2.55207,3918.4,3917.7,0.564]
[1734351693160,0.04694269,3918.5,3917.7,0.564]
[1734351693362,0.04694269,3918.5,3917.8,0.1888045]
[1734351693753,0.04694269,3918.5,3917.7,0.564]
[1734351695108,0.04694269,3918.5,3917.8,1.58497]
[1734351695424,2.55174,3918.9,3917.9,0.564]
[1734351695568,0.04432418,3918.4,3917.9,0.564]
[1734351695768,2.55174,3918.9,3917.9,0.564]
[1734351695984,0.04439277,3918.8,3918.0,0.564]
[1734351696190,0.04439277,3918.8,3917.9,0.53942624]
[1734351696191,0.04439277,3918.8,3918.1,1.02089]
[1734351696373,1.05721878,3919.3,3918.2,0.564]
[1734351696596,2.55163,3919.1,3918.2,0.564]
[1734351696963,0.04305496,3919.0,3918.2,0.564]
[1734351698708,0.04305496,3919.0,3918.2,0.77643462]
[1734351699301,0.04305496,3919.0,3918.3,0.564]
[1734351701487,2.55183,3918.8,3918.3,0.564]
[1734351701880,0.04326913,3918.7,3918.3,0.564]
[1734351702711,2.55169,3919.0,3918.3,0.564]
[1734351702874,0.04322595,3918.6,3918.3,0.564]
[1734351703074,2.5517,3919.0,3918.3,0.564]
[1734351703273,0.0432088,3918.5,3918.3,0.564]
[1734351703474,3.67582689,3919.4,3918.3,0.564]
[1734351703475,1.05721878,3919.4,3918.3,0.564]
[1734351703734,0.04319165,3918.4,3918.3,0.564]
[1734351703908,2.55163,3919.1,3918.3,0.564]
[1734351704279,0.04324246,3919.0,3918.3,0.564]
[1734351704881,0.04324246,3919.0,3918.3,0.722489]
[1734351705194,0.04322532,3918.9,3918.3,0.722489]
[1734351705388,2.55159,3919.2,3918.4,0.564]
[1734351705607,0.04329604,3919.1,3918.5,0.564]
[1734351706133,2.55149,3919.3,3918.5,0.564]
[1734351706626,0.04333922,3919.2,3918.5,0.564]
[1734351707228,2.5516,3919.1,3918.5,0.564]
[1734351707521,2.59492207,3919.1,3918.5,0.564]
[1734351708576,0.04332207,3919.1,3918.5,0.564]
[1734351708831,2.55157,3919.2,3918.5,0.564]
[1734351708990,0.0433518,3919.0,3918.5,0.564]
[1734351709195,2.55157,3919.2,3918.5,0.564]
[1734351709502,0.04336894,3919.1,3918.5,0.564]
[1734351709921,0.04336894,3919.1,3918.5,0.96609801]
[1734351710225,0.55,3919.6,3918.5,0.96609801]
[1734351710375,0.55,3919.6,3918.5,0.564]
[1734351710576,0.04199833,3919.5,3918.5,0.564]
[1734351710822,2.5515,3919.3,3918.5,0.564]
[1734351711336,0.04194691,3919.2,3918.5,0.564]
[1734351714645,0.04194691,3919.2,3918.5,1.58479]
[1734351714942,0.55,3919.6,3918.6,0.158479]
[1734351714943,3.10128,3919.6,3918.6,0.158479]
[1734351715145,0.0412435,3919.1,3918.5,0.564]
[1734351715444,0.04122636,3919.0,3918.5,0.564]
[1734351715913,2.55143,3919.4,3918.5,0.564]
[1734351716117,0.04126127,3918.9,3918.5,0.564]
[1734351716322,2.55143,3919.4,3918.5,0.96609501]
[1734351716647,2.55143,3919.4,3918.5,0.564]
[1734351716807,0.04132984,3919.3,3918.5,0.564]
[1734351717821,2.59280984,3919.3,3918.5,0.564]
[1734351719640,0.04132984,3919.3,3918.5,0.564]
[1734351719850,0.04132984,3919.3,3918.0,0.564]
[1734351719851,2.55186,3918.8,3918.0,0.564]
[1734351720213,0.04122178,3918.7,3918.0,0.564]
[1734351720612,2.55204,3918.5,3918.0,0.564]
[1734351720927,2.55176,3918.9,3918.0,0.564]
[1734351721112,0.0411443,3918.4,3918.0,0.564]
[1734351721317,2.55176,3918.9,3918.0,0.564]
[1734351721533,0.04097612,3918.3,3918.0,0.564]
[1734351721718,0.7906,3919.1,3918.0,0.72505015]
[1734351721719,2.55186,3918.7,3918.0,0.72505015]
[1734351722033,2.55186,3918.7,3918.0,0.564]
[1734351722255,0.04102757,3918.6,3918.0,0.564]
[1734351722636,2.55173,3919.0,3918.0,0.564]
[1734351722967,0.7906,3919.1,3918.0,0.564]
[1734351722968,0.04101042,3918.5,3918.0,0.564]
[1734351723129,0.7906,3919.1,3918.0,0.564]